fUST/lending_fUST_20240916
["ID","MTS","AMOUNT","RATE_DAILY","PERIOD"]
[338271086,1726471840300,-500.0,0.00021917,2]
[338271087,1726471840309,-500.0,0.00021917,2]
[338271088,1726471840318,-500.0,0.00021917,2]
[338271089,1726471840327,-500.0,0.00021917,2]
[338271090,1726471840337,-500.0,0.00021917,2]
[338271091,1726471840346,-1084.28,0.00021917,2]
[338271092,1726471840356,-500.0,0.00021917,2]
[338271093,1726471840366,-500.0,0.00021917,2]
[338271094,1726471840376,-500.0,0.00021917,2]
[338271095,1726471840385,-500.87185154,0.00021917,2]
[338271096,1726471840394,-500.0,0.00021917,2]
[338271097,1726471840403,-500.0,0.00021917,2]
[338271098,1726471840413,-500.0,0.00021917,2]
[338271099,1726471840422,-725.74,0.00021917,2]
[338271100,1726471840432,-548.70663045,0.00021917,2]
[338271101,1726471840442,-557.4557168,0.00021917,2]
[338271102,1726471840451,-500.0,0.00021917,2]
[338271103,1726471840460,-540.66,0.00021917,2]
[338271104,1726471840470,-500.0,0.00021917,2]
[338271105,1726471840479,-500.0,0.00021917,2]
[338271106,1726471840488,-500.0,0.00021917,2]
[338271107,1726471840498,-500.0,0.00021917,2]
[338271108,1726471840507,-501.46191263,0.00021917,2]
[338271109,1726471840520,-500.0,0.00021917,2]
[338271110,1726471840529,-1643.47,0.00021917,2]
[338271111,1726471840539,-500.0,0.00021917,2]
[338271112,1726471840548,-500.0,0.00021917,2]
[338271113,1726471840557,-502.33289972,0.00021917,2]
[338271114,1726471840567,-500.0,0.00021917,2]
[338271115,1726471840577,-500.0,0.00021917,2]
[338271116,1726471840586,-500.3470123,0.00021917,2]
[338271117,1726471840596,-502.03093115,0.00021917,2]
[338271118,1726471840605,-500.0,0.00021917,2]
[338271119,1726471840615,-151.0,0.00021917,2]
[338271120,1726471840625,-151.0,0.00021917,2]
[338271121,1726471840635,-616.25950313,0.00021917,2]
[338271122,1726471840644,-500.0,0.00021917,2]
[338271123,1726471840653,-501.94115794,0.00021917,2]
[338271124,1726471840663,-1380.88,0.00021917,2]
[338271125,1726471840672,-500.0,0.00021917,2]
[338271126,1726471840681,-500.0,0.00021917,2]
[338271127,1726471840690,-502.49306646,0.00021917,2]
[338271128,1726471840700,-767.5,0.00021917,2]
[338271129,1726471840710,-1113.69,0.00021917,2]
[338271130,1726471840720,-500.0,0.00021917,2]
[338271131,1726471840729,-200.0,0.00021917,2]
[338271132,1726471840739,-501.16457723,0.00021917,2]
[338271133,1726471840747,-1238.89,0.00021917,2]
[338271134,1726471840757,-500.0,0.00021917,2]
[338271135,1726471840767,-500.0,0.00021917,2]
[338271136,1726471840776,-500.0,0.00021917,2]
[338271137,1726471840785,-210.20855622,0.00021917,2]
[338271138,1726471840800,-500.0,0.00021917,2]
[338271139,1726471840809,-1297.15,0.00021917,2]
[338271140,1726471840819,-513.55203703,0.00021917,2]
[338271141,1726471840829,-500.0,0.00021917,2]
[338271142,1726471840839,-500.0,0.00021917,2]
[338271143,1726471840847,-500.0,0.00021917,2]
[338271144,1726471840857,-500.0,0.00021917,2]
[338271145,1726471840867,-500.0,0.00021917,2]
[338271146,1726471840877,-500.0,0.00021917,2]
[338271147,1726471840887,-500.0,0.00021917,2]
[338271148,1726471840896,-500.0,0.00021917,2]
[338271149,1726471840906,-500.0,0.00021917,2]
[338271150,1726471840916,-500.0,0.00021917,2]
[338271151,1726471840926,-500.0,0.00021917,2]
[338271152,1726471840936,-500.0,0.00021917,2]
[338271153,1726471840945,-500.0,0.00021917,2]
[338271154,1726471840954,-500.0,0.00021917,2]
[338271155,1726471840963,-500.0,0.00021917,2]
[338271156,1726471840974,-500.0,0.00021917,2]
[338271157,1726471840983,-500.0,0.00021917,2]
[338271158,1726471840993,-151.0,0.00021917,2]
[338271159,1726471841003,-500.0,0.00021917,2]
[338271160,1726471841012,-500.0,0.00021917,2]
[338271161,1726471841022,-153.101223,0.00021917,2]
[338271162,1726471841031,-500.0,0.00021917,2]
[338271163,1726471841040,-500.0,0.00021917,2]
[338271164,1726471841050,-500.0,0.00021917,2]
[338271165,1726471841059,-500.0,0.00021917,2]
[338271166,1726471841070,-500.0,0.00021917,2]
[338271167,1726471841078,-519.04,0.00021917,2]
[338271168,1726471841088,-500.0,0.00021917,2]
[338271169,1726471841097,-500.0,0.00021917,2]
[338271170,1726471841107,-502.36651575,0.00021917,2]
[338271171,1726471841116,-500.0,0.00021917,2]
[338271172,1726471841126,-500.0,0.00021917,2]
[338271173,1726471841136,-501.02223224,0.00021917,2]
[338271174,1726471841145,-1469.88,0.00021917,2]
[338271175,1726471841154,-500.0,0.00021917,2]
[338271176,1726471841164,-545.4,0.00021917,2]
[338271177,1726471841173,-500.0,0.00021917,2]
[338271178,1726471841183,-500.0,0.00021917,2]
[338271179,1726471841192,-500.0,0.00021917,2]
[338271180,1726471841201,-500.0,0.00021917,2]
[338271181,1726471841211,-1636.83,0.00021917,2]
[338271182,1726471841220,-501.42360895,0.00021917,2]
[338271183,1726471841230,-524.5398809,0.00021917,2]
[338271184,1726471841240,-500.0,0.00021917,2]
[338271185,1726471841249,-500.0,0.00021917,2]
[338271186,1726471841259,-530.41285962,0.00021917,2]
[338271187,1726471841268,-630.96870364,0.00021917,2]
[338271188,1726471841277,-500.85598556,0.00021917,2]
[338271189,1726471841287,-500.0,0.00021917,2]
[338271190,1726471841296,-500.0,0.00021917,2]
[338271191,1726471841306,-500.0,0.00021917,2]
[338271192,1726471841315,-500.0,0.00021917,2]
[338271193,1726471841326,-500.0,0.00021917,2]
[338271194,1726471841335,-788.95,0.00021917,2]
[338271195,1726471841345,-500.0,0.00021917,2]
[338271196,1726471841355,-500.0,0.00021917,2]
[338271197,1726471841364,-500.0,0.00021917,2]
[338271198,1726471841374,-500.0,0.00021917,2]
[338271199,1726471841383,-500.99275421,0.00021917,2]
[338271200,1726471841392,-500.0,0.00021917,2]
[338271201,1726471841402,-500.0,0.00021917,2]
[338271202,1726471841411,-500.0,0.00021917,2]
[338271203,1726471841421,-500.0,0.00021917,2]
[338271204,1726471841430,-677.8,0.00021917,2]
[338271205,1726471841440,-500.0,0.00021917,2]
[338271206,1726471841450,-500.0,0.00021917,2]
[338271207,1726471841459,-500.0,0.00021917,2]
[338271208,1726471841470,-578.5,0.00021917,2]
[338271209,1726471841479,-500.58409598,0.00021917,2]
[338271210,1726471841489,-500.0,0.00021917,2]
[338271211,1726471841499,-500.0,0.00021917,2]
[338271212,1726471841508,-877.34,0.00021917,2]
[338271213,1726471841518,-500.0,0.00021917,2]
[338271214,1726471841528,-500.0,0.00021917,2]
[338271215,1726471841538,-500.0,0.00021917,2]
[338271216,1726471841547,-500.0,0.00021917,2]
[338271217,1726471841557,-882.25,0.00021917,2]
[338271218,1726471841567,-500.0,0.00021917,2]
[338271219,1726471841577,-981.76,0.00021917,2]
[338271220,1726471841586,-500.0,0.00021917,2]
[338271221,1726471841595,-500.0,0.00021917,2]
[338271222,1726471841605,-500.0,0.00021917,2]
[338271223,1726471841615,-500.0,0.00021917,2]
[338271224,1726471841624,-500.0,0.00021917,2]
[338271225,1726471841634,-500.0,0.00021917,2]
[338271226,1726471841643,-500.0,0.00021917,2]
[338271227,1726471841654,-500.0,0.00021917,2]
[338271228,1726471841663,-795.54,0.00021917,2]
[338271229,1726471841672,-572.39641926,0.00021917,2]
[338271230,1726471841682,-500.0,0.00021917,2]
[338271231,1726471841691,-500.0,0.00021917,2]
[338271232,1726471841700,-500.0,0.00021917,2]
[338271233,1726471841710,-500.0,0.00021917,2]
[338271234,1726471841719,-449.8630813,0.00021917,2]
[338271235,1726471841728,-502.43109582,0.00021917,2]
[338271236,1726471841737,-769.85,0.00021917,2]
[338271237,1726471841746,-500.0,0.00021917,2]
[338271238,1726471841755,-500.0,0.00021917,2]
[338271239,1726471841765,-500.0,0.00021917,2]
[338271240,1726471841774,-500.0,0.00021917,2]
[338271241,1726471841784,-500.85140509,0.00021917,2]
[338271242,1726471841794,-500.0,0.00021917,2]
[338271243,1726471841803,-500.0,0.00021917,2]
[338271244,1726471841812,-501.57699895,0.00021917,2]
[338271245,1726471841821,-501.54979081,0.00021917,2]
[338271246,1726471841830,-500.0,0.00021917,2]
[338271247,1726471841840,-500.0,0.00021917,2]
[338271248,1726471841849,-500.0,0.00021917,2]
[338271249,1726471841859,-620.33,0.00021917,2]
[338271250,1726471841868,-500.0,0.00021917,2]
[338271251,1726471841877,-383.18475543,0.00021917,2]
[338271252,1726471841887,-500.0,0.00021917,2]
[338271253,1726471841897,-887.39,0.00021917,2]
[338271254,1726471841907,-689.38,0.00021917,2]
[338271255,1726471841916,-500.0,0.00021917,2]
[338271256,1726471841925,-619.31,0.00021917,2]
[338271257,1726471841935,-501.18258251,0.00021917,2]
[338271258,1726471841944,-500.0,0.00021917,2]
[338271259,1726471841953,-1515.84,0.00021917,2]
[338271260,1726471841963,-501.88872728,0.00021917,2]
[338271261,1726471841972,-500.0,0.00021917,2]
[338271262,1726471841982,-500.0,0.00021917,2]
[338271263,1726471841991,-500.0,0.00021917,2]
[338271264,1726471842000,-500.0,0.00021917,2]
[338271265,1726471842010,-500.0,0.00021917,2]
[338271266,1726471842020,-500.0,0.00021917,2]
[338271267,1726471842029,-500.0,0.00021917,2]
[338271268,1726471842039,-500.0,0.00021917,2]
[338271269,1726471842049,-488.68200995,0.00021917,2]
[338271270,1726471842058,-1783.95,0.00021917,2]
[338271271,1726471842068,-500.0,0.00021917,2]
[338271272,1726471842078,-500.0,0.00021917,2]
[338271273,1726471842087,-500.0,0.00021917,2]
[338271274,1726471842097,-503.58194289,0.00021917,2]
[338271275,1726471842107,-2009.03,0.00021917,2]
[338271276,1726471842116,-500.0,0.00021917,2]
[338271277,1726471842125,-500.0,0.00021917,2]
[338271278,1726471842134,-500.0,0.00021917,2]
[338271279,1726471842144,-500.0,0.00021917,2]
[338271280,1726471842154,-500.0,0.00021917,2]
[338271281,1726471842164,-500.0,0.00021917,2]
[338271282,1726471842173,-500.0,0.00021917,2]
[338271283,1726471842183,-531.56105049,0.00021917,2]
[338271284,1726471842193,-500.0,0.00021917,2]
[338271285,1726471842202,-500.0,0.00021917,2]
[338271286,1726471842212,-500.0,0.00021917,2]
[338271287,1726471842221,-500.0,0.00021917,2]
[338271288,1726471842231,-500.0,0.00021917,2]
[338271289,1726471842240,-500.0,0.00021917,2]
[338271290,1726471842250,-500.0,0.00021917,2]
[338271291,1726471842260,-504.89472862,0.00021917,2]
[338271292,1726471842269,-500.0,0.00021917,2]
[338271293,1726471842279,-500.0,0.00021917,2]
[338271294,1726471842288,-500.0,0.00021917,2]
[338271295,1726471842297,-500.0,0.00021917,2]
[338271296,1726471842306,-502.7670218,0.00021917,2]
[338271297,1726471842316,-503.09417095,0.00021917,2]
[338271298,1726471842326,-810.46,0.00021917,2]
[338271299,1726471842336,-500.0,0.00021917,2]
[338271300,1726471842346,-500.0,0.00021917,2]
[338271301,1726471842356,-500.0,0.00021917,2]
[338271302,1726471842365,-500.0,0.00021917,2]
[338271303,1726471842376,-500.0,0.00021917,2]
[338271304,1726471842386,-521.28,0.00021917,2]
[338271305,1726471842395,-500.0,0.00021917,2]
[338271306,1726471842405,-657.94,0.00021917,2]
[338271307,1726471842414,-500.0,0.00021917,2]
[338271308,1726471842424,-500.0,0.00021917,2]
[338271309,1726471842433,-500.0,0.00021917,2]
[338271310,1726471842443,-500.0,0.00021917,2]
[338271311,1726471842452,-500.0,0.00021917,2]
[338271312,1726471842461,-500.0,0.00021917,2]
[338271313,1726471842471,-2499.4,0.00021917,2]
[338271315,1726471842481,-500.0,0.00021917,2]
[338271318,1726471842491,-851.64,0.00021917,2]
[338271320,1726471842501,-500.0,0.00021917,2]
[338271321,1726471842510,-500.0,0.00021917,2]
[338271322,1726471842522,-509.40659585,0.00021917,2]
[338271323,1726471842531,-500.0,0.00021917,2]
[338271324,1726471842542,-1966.08,0.00021917,2]
[338271325,1726471842552,-1966.08,0.00021917,2]
[338271326,1726471842562,-1966.08,0.00021917,2]
[338271328,1726471842572,-1966.08,0.00021917,2]
[338271330,1726471842583,-1033.31,0.00021917,2]
[338271331,1726471842592,-500.0,0.00021917,2]
[338271333,1726471842602,-1966.08,0.00021917,2]
[338271335,1726471842611,-1966.08,0.00021917,2]
[338271337,1726471842621,-1966.08,0.00021917,2]
[338271338,1726471842631,-1966.08,0.00021917,2]
[338271340,1726471842641,-1966.08,0.00021917,2]
[338271342,1726471842650,-500.0,0.00021917,2]
[338271344,1726471842660,-1966.08,0.00021917,2]
[338271345,1726471842669,-308.69508602,0.00021917,2]
[338271357,1726471842970,-1657.38491398,0.00021917,2]
[338271359,1726471842980,-500.0,0.00021917,2]
[338271360,1726471842989,-1966.08,0.00021917,2]
[338271361,1726471842999,-1966.08,0.00021917,2]
[338271362,1726471843009,-501.4,0.00021917,2]
[338271363,1726471843019,-1966.08,0.00021917,2]
[338271364,1726471843029,-1966.08,0.00021917,2]
[338271365,1726471843039,-1966.08,0.00021917,2]
[338271366,1726471843049,-1966.08,0.00021917,2]
[338271367,1726471843059,-1811.21344771,0.00021917,2]
[338271540,1726471845922,-154.86655229,0.00021917,2]
[338271541,1726471845933,-477.21344771,0.00021917,2]
[338271554,1726472091324,169.768507,0.00013699,2]
[338271560,1726472653160,-165.8620902,0.0001847,2]
[338271561,1726472653197,-5908.7525952,0.00019342,2]
[338271562,1726472653234,-191.749096,0.00019567,2]
[338271563,1726472653271,-191.749096,0.00019621,2]
[338271564,1726472653317,-191.749096,0.00019675,2]
[338271565,1726472653354,-3000.0,0.00019688,2]
[338271566,1726472653393,-300.0,0.00019725,2]
[338271567,1726472653431,-50.1380266,0.00019726,2]
[338271568,1726472680007,169.768507,0.00013699,2]
[338271569,1726472705122,-191.749096,0.00019728,2]
[338271570,1726472705157,-191.749096,0.00019782,2]
[338271571,1726472705192,-191.749096,0.00019836,2]
[338271572,1726472705228,-191.749096,0.0001989,2]
[338271573,1726472705264,-191.749096,0.00019943,2]
[338271574,1726472705298,-191.749096,0.00019997,2]
[338271575,1726472826106,-237.0965758,0.00019512,2]
[338271576,1726472826130,-191.749096,0.00020051,2]
[338271577,1726472826153,-43.07112344,0.00020104,2]
[338271580,1726472939857,-300.0,0.00019488,2]
[338271581,1726472939881,-300.0,0.00019488,2]
[338271582,1726472939905,-24300.0,0.00019489,2]
[338271583,1726472963764,-600.0,0.00019489,2]
[338271608,1726473031932,-148.67797256,0.00020104,2]
[338271609,1726473031942,-150.58148017,0.00020158,2]
[338271610,1726473031955,-41.16761583,0.00020158,2]
[338271611,1726473031964,-201.516579,0.00020193,2]
[338271612,1726473031975,-191.749096,0.00020212,2]
[338271613,1726473031984,-191.749096,0.00020265,2]
[338271614,1726473031994,-191.749096,0.00020319,2]
[338271615,1726473032003,-191.749096,0.00020373,2]
[338271616,1726473032012,-191.749096,0.00020426,2]
[338271617,1726473032022,-191.749096,0.0002048,2]
[338271618,1726473032031,-825.3621747,0.000205,2]
[338271619,1726473032041,-191.749096,0.00020534,2]
[338271620,1726473032051,-191.749096,0.00020587,2]
[338271621,1726473032060,-357.539536,0.00021,21]
[338271622,1726473032085,-642.460464,0.00021,21]
[338271623,1726473032098,-154.4189276,0.0002137,2]
[338271624,1726473032108,-416.8818214,0.0002137,2]
[338271625,1726473032119,-153.0,0.0002137,2]
[338271626,1726473032129,-153.0,0.0002137,2]
[338271627,1726473032138,-300.0,0.00021534,2]
[338271628,1726473032149,-85.59898677,0.00021535,2]
[338271653,1726473038143,-205.99237023,0.00021535,2]
[338271654,1726473038152,-338.894514,0.00021535,2]
[338271656,1726473038162,-300.0,0.00021796,2]
[338271658,1726473038171,-897.6936384,0.00021797,2]
[338271660,1726473038181,-291.591357,0.00021804,2]
[338271662,1726473038192,-84.86322981,0.00021804,2]
[338271664,1726473038210,-254.03128419,0.00021804,2]
[338271665,1726473038226,-164.0,0.00021806,2]
[338271667,1726473038237,-1000.0,0.00021807,2]
[338271669,1726473038246,-1830.93661152,0.00021817,2]
[338271671,1726473038256,-200.21954025,0.0002185,2]
[338271673,1726473038267,-466.09,0.00021887,3]
[338271675,1726473038276,-4468.23855689,0.00021896,5]
[338271677,1726473038286,-3147.4284711,0.00021897,3]
[338271698,1726473040060,-209.68616427,0.00021745,2]
[338271699,1726473040070,-299057.0291399,0.00021897,3]
[338271700,1726473040080,-14103.2256045,0.00021897,3]
[338271701,1726473040090,-150.112233,0.000219,3]
[338271702,1726473040105,-176.757893,0.000219,2]
[338271703,1726473040114,-500.0,0.00021906,2]
[338271704,1726473040124,-331.64743325,0.00021906,2]
[338271705,1726473040134,-500.0,0.00021906,2]
[338271706,1726473040144,-500.0,0.00021906,2]
[338271707,1726473040154,-312.83270861,0.00021906,2]
[338271709,1726473040163,-11539.0027673,0.00021907,3]
[338271710,1726473040173,-409.75612961,0.00021916,2]
[338271711,1726473040183,-3836.7072685,0.00021916,2]
[338271712,1726473040192,-595.86508479,0.00021917,5]
[338271713,1726473040202,-186.01304692,0.00021917,7]
[338271714,1726473040211,-500.0,0.00021917,2]
[338271715,1726473040221,-151.0,0.00021917,2]
[338271716,1726473040231,-151.0,0.00021917,2]
[338271717,1726473040240,-157.516704,0.00021917,2]
[338271718,1726473040249,-501.21640284,0.00021917,2]
[338271719,1726473040258,-500.0,0.00021917,2]
[338271720,1726473040268,-500.0,0.00021917,2]
[338271721,1726473040278,-500.0,0.00021917,2]
[338271722,1726473040287,-500.0,0.00021917,2]
[338271723,1726473040296,-500.0,0.00021917,2]
[338271724,1726473040306,-500.0,0.00021917,2]
[338271725,1726473040316,-500.0,0.00021917,2]
[338271726,1726473040325,-533.096893,0.00021917,2]
[338271727,1726473040335,-500.0,0.00021917,2]
[338271728,1726473040344,-559.31746528,0.00021917,2]
[338271729,1726473040354,-501.87713199,0.00021917,2]
[338271730,1726473040363,-500.0,0.00021917,2]
[338271731,1726473040372,-500.0,0.00021917,2]
[338271732,1726473040382,-500.0,0.00021917,2]
[338271733,1726473040391,-500.0,0.00021917,2]
[338271734,1726473040400,-500.0,0.00021917,2]
[338271735,1726473040409,-662.29,0.00021917,2]
[338271736,1726473040419,-502.43080839,0.00021917,2]
[338271737,1726473040429,-500.0,0.00021917,2]
[338271738,1726473040439,-644.27932226,0.00021917,2]
[338271739,1726473040450,-500.0,0.00021917,2]
[338271740,1726473040460,-500.0,0.00021917,2]
[338271741,1726473040469,-506.19130394,0.00021917,2]
[338271742,1726473040479,-500.45656717,0.00021917,2]
[338271743,1726473040488,-500.0,0.00021917,2]
[338271744,1726473040498,-502.80934301,0.00021917,2]
[338271745,1726473040507,-500.0,0.00021917,2]
[338271746,1726473040516,-1938.96,0.00021917,2]
[338271747,1726473040525,-548.70663045,0.00021917,2]
[338271748,1726473040535,-705.84,0.00021917,2]
[338271749,1726473040544,-1359.85,0.00021917,2]
[338271750,1726473040553,-500.0,0.00021917,2]
[338271751,1726473040563,-501.34182327,0.00021917,2]
[338271752,1726473040572,-500.0,0.00021917,2]
[338271753,1726473040582,-525.96691778,0.00021917,2]
[338271754,1726473040590,-500.0,0.00021917,2]
[338271755,1726473040600,-500.0,0.00021917,2]
[338271756,1726473040608,-500.0,0.00021917,2]
[338271757,1726473040617,-1494.77,0.00021917,2]
[338271758,1726473040626,-1173.31,0.00021917,2]
[338271759,1726473040635,-502.90992663,0.00021917,2]
[338271760,1726473040645,-500.0,0.00021917,2]
[338271761,1726473040655,-500.0,0.00021917,2]
[338271762,1726473040664,-500.0,0.00021917,2]
[338271763,1726473040673,-504.38277641,0.00021917,2]
[338271764,1726473040683,-500.0,0.00021917,2]
[338271765,1726473040692,-500.0,0.00021917,2]
[338271766,1726473040701,-500.0,0.00021917,2]
[338271767,1726473040711,-502.57007603,0.00021917,2]
[338271768,1726473040720,-500.0,0.00021917,2]
[338271769,1726473040730,-2499.4,0.00021917,2]
[338271770,1726473040739,-500.0,0.00021917,2]
[338271771,1726473040748,-500.0,0.00021917,2]
[338271772,1726473040758,-500.0,0.00021917,2]
[338271773,1726473040767,-500.0,0.00021917,2]
[338271774,1726473040777,-500.0,0.00021917,2]
[338271775,1726473040786,-500.0,0.00021917,2]
[338271776,1726473040796,-505.18852809,0.00021917,2]
[338271777,1726473040806,-500.0,0.00021917,2]
[338271778,1726473040816,-500.0,0.00021917,2]
[338271779,1726473040825,-500.0,0.00021917,2]
[338271780,1726473040834,-500.0,0.00021917,2]
[338271781,1726473040844,-303.31555134,0.00021917,2]
[338271782,1726473040854,-500.0,0.00021917,2]
[338271783,1726473040863,-500.0,0.00021917,2]
[338271784,1726473040872,-463.62410991,0.00021917,2]
[338271785,1726473040882,-500.0,0.00021917,2]
[338271786,1726473040891,-500.0,0.00021917,2]
[338271787,1726473040900,-151.0,0.00021917,2]
[338271788,1726473040910,-282.20428915,0.00021917,2]
[338271789,1726473040919,-151.0,0.00021917,2]
[338271790,1726473040929,-809.25,0.00021917,2]
[338271791,1726473040940,-504.53,0.00021917,2]
[338271792,1726473040950,-500.0,0.00021917,2]
[338271793,1726473040959,-500.0,0.00021917,2]
[338271794,1726473040968,-500.0,0.00021917,2]
[338271795,1726473040978,-500.0,0.00021917,2]
[338271796,1726473040988,-381.98269071,0.00021917,2]
[338271797,1726473040998,-355.14947995,0.00021917,2]
[338271798,1726473041007,-501.02223224,0.00021917,2]
[338271799,1726473041017,-510.18407007,0.00021917,2]
[338271800,1726473041026,-500.0,0.00021917,2]
[338271801,1726473041036,-500.0,0.00021917,2]
[338271802,1726473041046,-784.81,0.00021917,2]
[338271803,1726473041055,-500.0,0.00021917,2]
[338271804,1726473041065,-500.0,0.00021917,2]
[338271805,1726473041075,-500.0,0.00021917,2]
[338271806,1726473041084,-500.0,0.00021917,2]
[338271807,1726473041095,-500.0,0.00021917,2]
[338271808,1726473041106,-151.0,0.00021917,2]
[338271809,1726473041117,-500.0,0.00021917,2]
[338271810,1726473041127,-500.0,0.00021917,2]
[338271811,1726473041136,-500.0,0.00021917,2]
[338271812,1726473041146,-586.20448624,0.00021917,2]
[338271813,1726473041156,-1154.31,0.00021917,2]
[338271814,1726473041167,-630.96870364,0.00021917,2]
[338271815,1726473041176,-500.0,0.00021917,2]
[338271816,1726473041186,-500.0,0.00021917,2]
[338271817,1726473041196,-500.0,0.00021917,2]
[338271818,1726473041206,-500.0,0.00021917,2]
[338271819,1726473041215,-500.0,0.00021917,2]
[338271820,1726473041225,-500.0,0.00021917,2]
[338271821,1726473041234,-588.5,0.00021917,2]
[338271822,1726473041243,-500.54526337,0.00021917,2]
[338271823,1726473041253,-500.0,0.00021917,2]
[338271824,1726473041262,-500.0,0.00021917,2]
[338271825,1726473041272,-500.0,0.00021917,2]
[338271826,1726473041282,-500.0,0.00021917,2]
[338271827,1726473041292,-157.543064,0.00021917,2]
[338271828,1726473041301,-500.0,0.00021917,2]
[338271829,1726473041310,-500.0,0.00021917,2]
[338271830,1726473041320,-500.0,0.00021917,2]
[338271831,1726473041329,-1134.97,0.00021917,2]
[338271832,1726473041339,-1134.97,0.00021917,2]
[338271833,1726473041348,-1134.97,0.00021917,2]
[338271834,1726473041357,-1134.97,0.00021917,2]
[338271835,1726473041367,-1134.97,0.00021917,2]
[338271836,1726473041376,-1134.97,0.00021917,2]
[338271837,1726473041386,-1134.97,0.00021917,2]
[338271838,1726473041395,-1134.97,0.00021917,2]
[338271839,1726473041404,-1134.97,0.00021917,2]
[338271840,1726473041414,-1134.97,0.00021917,2]
[338271841,1726473041424,-1134.97,0.00021917,2]
[338271842,1726473041434,-1134.97,0.00021917,2]
[338271843,1726473041443,-500.0,0.00021917,2]
[338271844,1726473041453,-1134.97,0.00021917,2]
[338271845,1726473041462,-1134.97,0.00021917,2]
[338271846,1726473041472,-1134.97,0.00021917,2]
[338271847,1726473041481,-1134.97,0.00021917,2]
[338271848,1726473041490,-1134.97,0.00021917,2]
[338271849,1726473041500,-1134.97,0.00021917,2]
[338271850,1726473041509,-739.0,0.00021917,2]
[338271851,1726473041519,-1134.97,0.00021917,2]
[338271852,1726473041528,-500.0,0.00021917,2]
[338271853,1726473041538,-1134.97,0.00021917,2]
[338271854,1726473041547,-1134.97,0.00021917,2]
[338271855,1726473041556,-1134.97,0.00021917,2]
[338271856,1726473041566,-500.0,0.00021917,2]
[338271857,1726473041575,-1134.97,0.00021917,2]
[338271858,1726473041584,-1135.16176307,0.00021917,2]
[338271859,1726473041594,-634.82,0.00021917,2]
[338271860,1726473041604,-1082.55,0.00021917,2]
[338271861,1726473041615,-500.0,0.00021917,2]
[338271862,1726473041625,-500.0,0.00021917,2]
[338271863,1726473041634,-500.0,0.00021917,2]
[338271864,1726473041644,-500.0,0.00021917,2]
[338271865,1726473041653,-500.0,0.00021917,2]
[338271866,1726473041662,-500.0,0.00021917,2]
[338271867,1726473041672,-500.0,0.00021917,2]
[338271868,1726473041681,-500.0,0.00021917,2]
[338271869,1726473041690,-159.166916,0.00021917,2]
[338271870,1726473041700,-500.0,0.00021917,2]
[338271871,1726473041710,-2146.36,0.00021917,2]
[338271872,1726473041720,-83.57142515,0.00021917,2]
[338271873,1726473041746,-416.42857485,0.00021917,2]
[338271874,1726473041755,-136.85750401,0.00021917,2]
[338271889,1726473043131,-789.22249599,0.00021917,2]
[338271890,1726473043142,-500.0,0.00021917,2]
[338271891,1726473043152,-500.0,0.00021917,2]
[338271892,1726473043161,-500.0,0.00021917,2]
[338271893,1726473043170,-500.0,0.00021917,2]
[338271894,1726473043180,-500.0,0.00021917,2]